[Event "*** Titled Tuesday Blitz"]
[Site "Chess.com"]
[Date "2020.11.10"]
[Round "1"]
[White "grunbergmihai"]
[Black "Annawel"]
[Result "1/2-1/2"]
[WhiteElo "2467"]
[BlackElo "2918"]
[TimeControl "180+1"]
[EndTime "10:07:06 PST"]
[Termination "Game drawn by repetition"]

1. Nf3 {[%clk 0:03:00.9]} 1... d5 {[%clk 0:02:57.2]} 2. c4 {[%clk 0:02:57.7]}
2... e6 {[%clk 0:02:56.6]} 3. g3 {[%clk 0:02:57.1]} 3... Nf6 {[%clk 0:02:56.5]}
4. Bg2 {[%clk 0:02:57.1]} 4... Be7 {[%clk 0:02:57]} 5. O-O {[%clk 0:02:58]} 5...
O-O {[%clk 0:02:57.7]} 6. d4 {[%clk 0:02:58.3]} 6... c6 {[%clk 0:02:55.9]} 7.
Qc2 {[%clk 0:02:58.1]} 7... Ne4 {[%clk 0:02:52.7]} 8. Rd1 {[%clk 0:02:53.4]}
8... Nd7 {[%clk 0:02:50.6]} 9. Nbd2 {[%clk 0:02:52.3]} 9... f5 {[%clk
0:02:49.9]} 10. b3 {[%clk 0:02:50.3]} 10... Bf6 {[%clk 0:02:48.4]} 11. Bb2
{[%clk 0:02:45]} 11... g5 {[%clk 0:02:37.6]} 12. Rac1 {[%clk 0:02:41.9]} 12...
g4 {[%clk 0:02:33.5]} 13. Ne5 {[%clk 0:02:41.3]} 13... Nxe5 {[%clk 0:02:33.8]}
14. dxe5 {[%clk 0:02:41.1]} 14... Bg5 {[%clk 0:02:34]} 15. e3 {[%clk 0:02:22.3]}
15... Nxd2 {[%clk 0:02:33.5]} 16. Rxd2 {[%clk 0:02:20.3]} 16... Qe7 {[%clk
0:02:30.7]} 17. c5 {[%clk 0:02:08.2]} 17... h5 {[%clk 0:02:28.9]} 18. h4 {[%clk
0:02:07.6]} 18... gxh3 {[%clk 0:02:28.4]} 19. Bxh3 {[%clk 0:02:07.5]} 19... Bd7
{[%clk 0:02:27.3]} 20. f4 {[%clk 0:02:03.4]} 20... Bh6 {[%clk 0:02:27.1]} 21.
Rh2 {[%clk 0:01:56.2]} 21... Be8 {[%clk 0:01:57.2]} 22. Bg2 {[%clk 0:01:55.5]}
22... Bg6 {[%clk 0:01:55.9]} 23. Bf3 {[%clk 0:01:54.4]} 23... Kf7 {[%clk
0:01:54.2]} 24. Bxh5 {[%clk 0:01:53]} 24... Rg8 {[%clk 0:01:54.8]} 25. Kf2
{[%clk 0:01:45.3]} 25... Bxh5 {[%clk 0:01:43.8]} 26. Rxh5 {[%clk 0:01:44.7]}
26... Rg6 {[%clk 0:01:44.4]} 27. Rch1 {[%clk 0:01:43.2]} 27... Qf8 {[%clk
0:01:42.3]} 28. g4 {[%clk 0:01:31.3]} 28... fxg4 {[%clk 0:01:40.7]} 29. f5
{[%clk 0:01:30.7]} 29... Ke7 {[%clk 0:01:20]} 30. Ke1 {[%clk 0:01:07.7]} 30...
exf5 {[%clk 0:01:19.9]} 31. Rxf5 {[%clk 0:01:00]} 31... Qg8 {[%clk 0:01:15.7]}
32. Qh2 {[%clk 0:00:44.9]} 32... Bxe3 {[%clk 0:00:44.2]} 33. e6 {[%clk
0:00:33.8]} 33... g3 {[%clk 0:00:44.2]} 34. Qh7+ {[%clk 0:00:25.3]} 34... Qxh7
{[%clk 0:00:22.2]} 35. Rxh7+ {[%clk 0:00:24.2]} 35... Ke8 {[%clk 0:00:23.1]} 36.
Rh8+ {[%clk 0:00:16.8]} 36... Ke7 {[%clk 0:00:23.6]} 37. Rh7+ {[%clk 0:00:13.1]}
37... Ke8 {[%clk 0:00:23.9]} 38. Rh8+ {[%clk 0:00:10.7]} 38... Ke7 {[%clk
0:00:24.4]} 39. Rh7+ {[%clk 0:00:10.5]} 1/2-1/2

[Event "*** Titled Tuesday Blitz"]
[Site "Chess.com"]
[Date "2020.11.10"]
[Round "1"]
[White "ErikBlomqvist"]
[Black "AungTZ"]
[Result "1-0"]
[WhiteElo "2518"]
[BlackElo "2104"]
[TimeControl "180+1"]
[EndTime "10:07:06 PST"]
[Termination "ErikBlomqvist won on time"]

1. e4 {[%clk 0:02:56.2]} 1... c5 {[%clk 0:02:57.6]} 2. Nf3 {[%clk 0:02:55.9]}
2... Nc6 {[%clk 0:02:57]} 3. Bb5 {[%clk 0:02:54.4]} 3... e6 {[%clk 0:02:55.9]}
4. O-O {[%clk 0:02:52.7]} 4... Nge7 {[%clk 0:02:54.2]} 5. Re1 {[%clk 0:02:52.9]}
5... a6 {[%clk 0:02:51]} 6. Bf1 {[%clk 0:02:53]} 6... d5 {[%clk 0:02:49.8]} 7.
exd5 {[%clk 0:02:52.5]} 7... Nxd5 {[%clk 0:02:49.6]} 8. d4 {[%clk 0:02:52.5]}
8... Be7 {[%clk 0:02:36.6]} 9. dxc5 {[%clk 0:02:30.2]} 9... Bxc5 {[%clk
0:02:33.7]} 10. c4 {[%clk 0:02:30.2]} 10... Nf6 {[%clk 0:02:31.4]} 11. Qxd8+
{[%clk 0:02:29.8]} 11... Nxd8 {[%clk 0:02:25.7]} 12. Nc3 {[%clk 0:02:29.4]}
12... O-O {[%clk 0:02:23.7]} 13. Ne5 {[%clk 0:02:11.7]} 13... Nc6 {[%clk
0:02:17.2]} 14. Nxc6 {[%clk 0:02:09.4]} 14... bxc6 {[%clk 0:02:15]} 15. g3
{[%clk 0:02:00.8]} 15... Bb7 {[%clk 0:01:56.8]} 16. Bg2 {[%clk 0:01:59.3]} 16...
Rfd8 {[%clk 0:01:35]} 17. Be3 {[%clk 0:01:42.4]} 17... Bxe3 {[%clk 0:01:29.5]}
18. Rxe3 {[%clk 0:01:43.3]} 18... Rd2 {[%clk 0:01:23.5]} 19. Na4 {[%clk
0:01:41.4]} 19... Rad8 {[%clk 0:01:04.4]} 20. Bf3 {[%clk 0:01:40.8]} 20... g5
{[%clk 0:00:51.9]} 21. h3 {[%clk 0:01:33.5]} 21... h5 {[%clk 0:00:51]} 22. Re5
{[%clk 0:01:21.2]} 22... g4 {[%clk 0:00:38.5]} 23. hxg4 {[%clk 0:01:19.5]} 23...
hxg4 {[%clk 0:00:37.7]} 24. Bxg4 {[%clk 0:01:17.1]} 24... R8d4 {[%clk
0:00:25.1]} 25. Bf3 {[%clk 0:01:08.6]} 25... Rxc4 {[%clk 0:00:21.6]} 26. b3
{[%clk 0:01:03.1]} 26... Rcc2 {[%clk 0:00:20.2]} 27. Nc5 {[%clk 0:01:03.5]}
27... Bc8 {[%clk 0:00:17.4]} 28. Rf1 {[%clk 0:00:57.3]} 28... Nd5 {[%clk
0:00:15.9]} 29. Ne4 {[%clk 0:00:45]} 29... Rd3 {[%clk 0:00:11.9]} 30. Bg2 {[%clk
0:00:42.4]} 30... f5 {[%clk 0:00:08]} 31. Nd6 {[%clk 0:00:41]} 31... Bd7 {[%clk
0:00:07.3]} 32. g4 {[%clk 0:00:28.6]} 32... Nf4 {[%clk 0:00:01.1]} 33. Nc4
{[%clk 0:00:24.4]} 1-0

[Event "*** Titled Tuesday Blitz"]
[Site "Chess.com"]
[Date "2020.11.10"]
[Round "1"]
[White "tandaleo"]
[Black "smartinusa"]
[Result "0-1"]
[WhiteElo "2304"]
[BlackElo "2622"]
[TimeControl "180+1"]
[EndTime "10:07:12 PST"]
[Termination "smartinusa won on time"]

1. d4 {[%clk 0:03:00.5]} 1... d5 {[%clk 0:02:59.6]} 2. c4 {[%clk 0:03:00]} 2...
c6 {[%clk 0:03:00.1]} 3. cxd5 {[%clk 0:02:59.2]} 3... cxd5 {[%clk 0:03:00.2]} 4.
Nc3 {[%clk 0:02:59.5]} 4... Nc6 {[%clk 0:02:59.1]} 5. Bf4 {[%clk 0:02:58.1]}
5... Nf6 {[%clk 0:02:58.8]} 6. e3 {[%clk 0:02:57.4]} 6... Bf5 {[%clk 0:02:57.8]}
7. Qb3 {[%clk 0:02:56.7]} 7... Na5 {[%clk 0:02:57.3]} 8. Qa4+ {[%clk 0:02:56.4]}
8... Bd7 {[%clk 0:02:56.8]} 9. Qc2 {[%clk 0:02:56.7]} 9... Rc8 {[%clk
0:02:57.1]} 10. Bd3 {[%clk 0:02:46.7]} 10... b5 {[%clk 0:02:56.6]} 11. Qd2
{[%clk 0:02:35]} 11... Nc4 {[%clk 0:02:52.6]} 12. Bxc4 {[%clk 0:02:34.1]} 12...
dxc4 {[%clk 0:02:50.3]} 13. a3 {[%clk 0:02:29]} 13... Bc6 {[%clk 0:02:39.8]} 14.
Nf3 {[%clk 0:02:27.5]} 14... a5 {[%clk 0:02:36.3]} 15. O-O {[%clk 0:02:18.2]}
15... e6 {[%clk 0:02:24.8]} 16. Ne5 {[%clk 0:02:17.9]} 16... b4 {[%clk
0:02:12.2]} 17. axb4 {[%clk 0:02:08.6]} 17... axb4 {[%clk 0:02:11.1]} 18. Na4
{[%clk 0:02:07.5]} 18... Be7 {[%clk 0:01:28.9]} 19. Rfc1 {[%clk 0:02:06.6]}
19... Bd5 {[%clk 0:01:27.4]} 20. f3 {[%clk 0:02:01.6]} 20... g5 {[%clk
0:01:06.5]} 21. Bg3 {[%clk 0:01:23]} 21... Nh5 {[%clk 0:00:59.3]} 22. e4 {[%clk
0:01:15.6]} 22... Nxg3 {[%clk 0:00:44.8]} 23. hxg3 {[%clk 0:01:08.7]} 23... f6
{[%clk 0:00:42.5]} 24. exd5 {[%clk 0:00:48.2]} 24... fxe5 {[%clk 0:00:42.2]} 25.
dxe6 {[%clk 0:00:35.6]} 25... exd4 {[%clk 0:00:39.9]} 26. Qe2 {[%clk 0:00:27.9]}
26... d3 {[%clk 0:00:34.5]} 27. Qe5 {[%clk 0:00:26.9]} 27... O-O {[%clk
0:00:31.3]} 28. Kf2 {[%clk 0:00:09.6]} 28... Bf6 {[%clk 0:00:30.3]} 29. Qe4
{[%clk 0:00:08.3]} 29... c3 {[%clk 0:00:27.3]} 30. bxc3 {[%clk 0:00:08.1]} 30...
bxc3 {[%clk 0:00:27.2]} 31. Nxc3 {[%clk 0:00:06.5]} 31... Qd4+ {[%clk
0:00:19.5]} 32. Kf1 {[%clk 0:00:03.6]} 32... Rxc3 {[%clk 0:00:19.4]} 33. Rxc3
{[%clk 0:00:01.3]} 33... Qxc3 {[%clk 0:00:19.4]} 0-1

[Event "*** Titled Tuesday Blitz"]
[Site "Chess.com"]
[Date "2020.11.10"]
[Round "1"]
[White "Onischuk_V"]
[Black "Shuvalov"]
[Result "1-0"]
[WhiteElo "2876"]
[BlackElo "2443"]
[TimeControl "180+1"]
[EndTime "10:07:13 PST"]
[Termination "Onischuk_V won by resignation"]

1. e4 {[%clk 0:03:00]} 1... e6 {[%clk 0:02:55.5]} 2. d4 {[%clk 0:02:59.6]} 2...
d5 {[%clk 0:02:55]} 3. Bd3 {[%clk 0:03:00.3]} 3... c5 {[%clk 0:02:54.5]} 4. exd5
{[%clk 0:02:59.8]} 4... exd5 {[%clk 0:02:55.4]} 5. Nf3 {[%clk 0:02:56.9]} 5...
c4 {[%clk 0:02:55.2]} 6. Be2 {[%clk 0:02:56.7]} 6... Nf6 {[%clk 0:02:55.2]} 7.
O-O {[%clk 0:02:57.2]} 7... Be7 {[%clk 0:02:55.4]} 8. b3 {[%clk 0:02:57.5]} 8...
cxb3 {[%clk 0:02:55.3]} 9. axb3 {[%clk 0:02:58]} 9... O-O {[%clk 0:02:56.2]} 10.
c4 {[%clk 0:02:58.2]} 10... Nc6 {[%clk 0:02:56.3]} 11. Nc3 {[%clk 0:02:57.9]}
11... Bf5 {[%clk 0:02:55.3]} 12. Be3 {[%clk 0:02:56.4]} 12... a6 {[%clk
0:02:52]} 13. Ne5 {[%clk 0:02:54.7]} 13... Nb4 {[%clk 0:02:48.9]} 14. Rc1 {[%clk
0:02:41.7]} 14... Rc8 {[%clk 0:02:44.3]} 15. Qd2 {[%clk 0:02:40.5]} 15... Re8
{[%clk 0:02:41.5]} 16. h3 {[%clk 0:02:34.1]} 16... h6 {[%clk 0:02:40.9]} 17. Bf3
{[%clk 0:02:33.4]} 17... Bd6 {[%clk 0:02:33]} 18. cxd5 {[%clk 0:02:16.4]} 18...
Bxe5 {[%clk 0:02:08.5]} 19. dxe5 {[%clk 0:02:15.8]} 19... Rxe5 {[%clk
0:02:09.4]} 20. Qd4 {[%clk 0:01:51.6]} 20... Nd3 {[%clk 0:01:45.9]} 21. Rcd1
{[%clk 0:01:50.1]} 21... Qc7 {[%clk 0:01:26.6]} 22. Na4 {[%clk 0:01:38.4]} 22...
b5 {[%clk 0:01:02.6]} 23. Nb6 {[%clk 0:01:32.2]} 23... Rb8 {[%clk 0:01:02.5]}
24. d6 {[%clk 0:01:27.1]} 24... Qxb6 {[%clk 0:00:41.1]} 25. Qxb6 {[%clk
0:01:17.1]} 25... Rxb6 {[%clk 0:00:42]} 26. Bxb6 {[%clk 0:01:17.2]} 26... Nd7
{[%clk 0:00:40.6]} 27. Be3 {[%clk 0:01:00.7]} 27... a5 {[%clk 0:00:39.4]} 28.
Ra1 {[%clk 0:00:56.5]} 28... b4 {[%clk 0:00:34.5]} 29. Rfd1 {[%clk 0:00:54.1]}
29... a4 {[%clk 0:00:30.2]} 30. Rxa4 {[%clk 0:00:51.1]} 30... Kh7 {[%clk
0:00:23]} 31. Ra7 {[%clk 0:00:48]} 31... N3c5 {[%clk 0:00:17.8]} 32. Bxc5 {[%clk
0:00:44.9]} 32... Nxc5 {[%clk 0:00:18.3]} 33. d7 {[%clk 0:00:43.7]} 33... Bxd7
{[%clk 0:00:18.6]} 34. Rdxd7 {[%clk 0:00:42.1]} 34... Nxd7 {[%clk 0:00:18.9]}
35. Rxd7 {[%clk 0:00:42.2]} 35... Kg6 {[%clk 0:00:19.2]} 36. Rd4 {[%clk
0:00:41.3]} 36... Rb5 {[%clk 0:00:18.8]} 37. Be2 {[%clk 0:00:40.4]} 37... Rb6
{[%clk 0:00:18.4]} 38. f4 {[%clk 0:00:39]} 38... f6 {[%clk 0:00:16.3]} 39. Kf2
{[%clk 0:00:38.9]} 39... Kf7 {[%clk 0:00:16.4]} 40. Bc4+ {[%clk 0:00:37.9]}
40... Kg6 {[%clk 0:00:16.2]} 41. g4 {[%clk 0:00:37.4]} 41... h5 {[%clk 0:00:16]}
42. Bd3+ {[%clk 0:00:36.4]} 42... Kh6 {[%clk 0:00:15.8]} 43. Rd8 {[%clk
0:00:36.1]} 43... g6 {[%clk 0:00:15]} 44. gxh5 {[%clk 0:00:34.5]} 44... gxh5
{[%clk 0:00:14.1]} 45. Rd7 {[%clk 0:00:34.8]} 45... f5 {[%clk 0:00:12.6]} 46.
Bxf5 {[%clk 0:00:34.1]} 1-0

[Event "*** Titled Tuesday Blitz"]
[Site "Chess.com"]
[Date "2020.11.10"]
[Round "1"]
[White "Stalri"]
[Black "gilbert_gm"]
[Result "0-1"]
[WhiteElo "2184"]
[BlackElo "2543"]
[TimeControl "180+1"]
[EndTime "10:07:13 PST"]
[Termination "gilbert_gm won by checkmate"]

1. d4 {[%clk 0:00:33.5]} 1... c6 {[%clk 0:03:00.9]} 2. c4 {[%clk 0:00:32.9]}
2... d5 {[%clk 0:03:01.8]} 3. Nc3 {[%clk 0:00:32.7]} 3... Nf6 {[%clk 0:03:00.5]}
4. cxd5 {[%clk 0:00:32.8]} 4... cxd5 {[%clk 0:03:00.2]} 5. f3 {[%clk 0:00:33.3]}
5... Nc6 {[%clk 0:02:58.6]} 6. e4 {[%clk 0:00:33.4]} 6... e6 {[%clk 0:02:57.9]}
7. e5 {[%clk 0:00:33.5]} 7... Ng8 {[%clk 0:02:55.7]} 8. Be3 {[%clk 0:00:33.2]}
8... Nge7 {[%clk 0:02:54.5]} 9. Bd3 {[%clk 0:00:33]} 9... Nf5 {[%clk 0:02:52.1]}
10. Bxf5 {[%clk 0:00:32.8]} 10... exf5 {[%clk 0:02:53]} 11. f4 {[%clk
0:00:33.4]} 11... Be6 {[%clk 0:02:52.5]} 12. Nf3 {[%clk 0:00:33.9]} 12... Be7
{[%clk 0:02:51.3]} 13. O-O {[%clk 0:00:34.4]} 13... O-O {[%clk 0:02:47.6]} 14.
Ne2 {[%clk 0:00:34.1]} 14... Rc8 {[%clk 0:02:45.5]} 15. Qe1 {[%clk 0:00:33.1]}
15... Nb4 {[%clk 0:02:31.4]} 16. Qf2 {[%clk 0:00:19.5]} 16... Nd3 {[%clk
0:02:09.5]} 17. Qg3 {[%clk 0:00:19.4]} 17... Nxb2 {[%clk 0:02:07.4]} 18. h4
{[%clk 0:00:19.7]} 18... Nc4 {[%clk 0:01:58.5]} 19. Bf2 {[%clk 0:00:19.2]} 19...
Qb6 {[%clk 0:01:55.3]} 20. h5 {[%clk 0:00:18.3]} 20... g6 {[%clk 0:01:48.7]} 21.
hxg6 {[%clk 0:00:17.3]} 21... hxg6 {[%clk 0:01:47.1]} 22. Qh3 {[%clk 0:00:16.6]}
22... Kg7 {[%clk 0:01:29.4]} 23. Bh4 {[%clk 0:00:16.3]} 23... Rh8 {[%clk
0:01:26.1]} 24. Bxe7 {[%clk 0:00:14]} 24... Rxh3 {[%clk 0:01:19.1]} 25. Bf6+
{[%clk 0:00:14.2]} 25... Kf8 {[%clk 0:01:17.4]} 26. gxh3 {[%clk 0:00:15.1]}
26... Ke8 {[%clk 0:01:13.9]} 27. Kf2 {[%clk 0:00:15.1]} 27... Na3 {[%clk
0:01:05.6]} 28. h4 {[%clk 0:00:10.1]} 28... Bd7 {[%clk 0:01:03.3]} 29. h5 {[%clk
0:00:09.1]} 29... gxh5 {[%clk 0:01:02.2]} 30. Rg1 {[%clk 0:00:09]} 30... Bb5
{[%clk 0:01:00.8]} 31. Rg7 {[%clk 0:00:04.9]} 31... Bxe2 {[%clk 0:00:59.1]} 32.
Ng5 {[%clk 0:00:05.1]} 32... Qxd4+ {[%clk 0:00:57.8]} 33. Kg3 {[%clk 0:00:04.6]}
33... Rc3+ {[%clk 0:00:56.9]} 34. Kg2 {[%clk 0:00:03.8]} 34... Qd2 {[%clk
0:00:25.7]} 35. Nxf7 {[%clk 0:00:03.3]} 35... Bg4+ {[%clk 0:00:20.3]} 36. Kg1
{[%clk 0:00:02.1]} 36... Rg3+ {[%clk 0:00:19.7]} 37. Kf1 {[%clk 0:00:02.1]}
37... Bh3# {[%clk 0:00:18.9]} 0-1

[Event "*** Titled Tuesday Blitz"]
[Site "Chess.com"]
[Date "2020.11.10"]
[Round "1"]
[White "bascheyaro"]
[Black "InitiatingASC"]
[Result "1-0"]
[WhiteElo "2737"]
[BlackElo "2382"]
[TimeControl "180+1"]
[EndTime "10:07:15 PST"]
[Termination "bascheyaro won by resignation"]

1. d4 {[%clk 0:02:54.9]} 1... Nf6 {[%clk 0:02:58.4]} 2. c4 {[%clk 0:02:54.9]}
2... e6 {[%clk 0:02:58.4]} 3. Bg5 {[%clk 0:02:54.8]} 3... d5 {[%clk 0:02:54.3]}
4. Nc3 {[%clk 0:02:54.6]} 4... Be7 {[%clk 0:02:52.9]} 5. e3 {[%clk 0:02:54.5]}
5... O-O {[%clk 0:02:52.9]} 6. Nf3 {[%clk 0:02:54.9]} 6... c6 {[%clk 0:02:52.5]}
7. Qc2 {[%clk 0:02:54.6]} 7... Nbd7 {[%clk 0:02:53.2]} 8. Rd1 {[%clk 0:02:51.7]}
8... dxc4 {[%clk 0:02:45.9]} 9. Bxc4 {[%clk 0:02:50.8]} 9... b5 {[%clk
0:02:46.5]} 10. Bd3 {[%clk 0:02:51.2]} 10... a6 {[%clk 0:02:40.9]} 11. Ne4
{[%clk 0:02:47.7]} 11... Qa5+ {[%clk 0:02:12.5]} 12. Ke2 {[%clk 0:02:47]} 12...
h6 {[%clk 0:01:51]} 13. Bxf6 {[%clk 0:02:44]} 13... Nxf6 {[%clk 0:01:50.5]} 14.
Qxc6 {[%clk 0:02:26]} 14... Ra7 {[%clk 0:01:48.9]} 15. Qc3 {[%clk 0:02:12.4]}
15... Qxa2 {[%clk 0:01:33.6]} 16. Ne5 {[%clk 0:02:11.5]} 16... Qd5 {[%clk
0:01:17.2]} 17. f3 {[%clk 0:02:07]} 17... Qd8 {[%clk 0:01:04.6]} 18. Nc6 {[%clk
0:02:06.2]} 18... Rc7 {[%clk 0:00:56.8]} 19. Nxd8 {[%clk 0:02:05.7]} 19... Rxc3
{[%clk 0:00:56.9]} 20. bxc3 {[%clk 0:02:05.6]} 20... Rxd8 {[%clk 0:00:56.4]} 21.
Nxf6+ {[%clk 0:02:05.6]} 21... Bxf6 {[%clk 0:00:56.5]} 22. c4 {[%clk 0:02:06]}
22... b4 {[%clk 0:00:52.1]} 23. c5 {[%clk 0:02:05.3]} 23... Bb7 {[%clk
0:00:48.5]} 24. Ra1 {[%clk 0:02:04.4]} 24... Ra8 {[%clk 0:00:47.9]} 25. c6
{[%clk 0:01:53.4]} 25... Bxc6 {[%clk 0:00:44.3]} 26. Rxa6 {[%clk 0:01:53.2]}
26... Rxa6 {[%clk 0:00:35.8]} 27. Bxa6 {[%clk 0:01:54.1]} 27... Be7 {[%clk
0:00:36.4]} 28. Rb1 {[%clk 0:01:52.8]} 28... h5 {[%clk 0:00:28.3]} 29. Kd3
{[%clk 0:01:51.6]} 29... g6 {[%clk 0:00:26.9]} 30. e4 {[%clk 0:01:51.3]} 30...
Kf8 {[%clk 0:00:25]} 31. Rc1 {[%clk 0:01:51.1]} 31... Bd7 {[%clk 0:00:24]} 32.
Rc7 {[%clk 0:01:50]} 32... Ke8 {[%clk 0:00:24.5]} 33. Rb7 {[%clk 0:01:49.5]}
33... Kd8 {[%clk 0:00:24.7]} 34. Kc4 {[%clk 0:01:45]} 34... Bc6 {[%clk
0:00:22.7]} 35. Ra7 {[%clk 0:01:38.4]} 35... Bd7 {[%clk 0:00:21.7]} 36. Bb5
{[%clk 0:01:36.2]} 36... Bc8 {[%clk 0:00:20.6]} 37. Bc6 {[%clk 0:01:34.4]} 37...
g5 {[%clk 0:00:19.8]} 38. h3 {[%clk 0:01:33.3]} 38... h4 {[%clk 0:00:18.6]} 39.
e5 {[%clk 0:01:31.6]} 39... f6 {[%clk 0:00:18.1]} 40. exf6 {[%clk 0:01:30.5]}
40... Bxf6 {[%clk 0:00:18.5]} 41. Ba4 {[%clk 0:00:46.5]} 41... Be7 {[%clk
0:00:16.7]} 42. Kb5 {[%clk 0:00:41.7]} 42... Bf6 {[%clk 0:00:12.2]} 43. Kc6
{[%clk 0:00:32]} 43... Bxd4 {[%clk 0:00:11.1]} 44. Ra8 {[%clk 0:00:32.3]} 44...
Be5 {[%clk 0:00:07.9]} 45. Bb3 {[%clk 0:00:32.1]} 1-0

[Event "*** Titled Tuesday Blitz"]
[Site "Chess.com"]
[Date "2020.11.10"]
[Round "1"]
[White "Margarita2907"]
[Black "scarabee43"]
[Result "1/2-1/2"]
[WhiteElo "2237"]
[BlackElo "2555"]
[TimeControl "180+1"]
[EndTime "10:07:15 PST"]
[Termination "Game drawn by repetition"]

1. e4 {[%clk 0:03:00.4]} 1... c5 {[%clk 0:02:59.7]} 2. Nf3 {[%clk 0:02:59.4]}
2... e6 {[%clk 0:02:59.1]} 3. d4 {[%clk 0:02:58.4]} 3... cxd4 {[%clk 0:02:59.8]}
4. Nxd4 {[%clk 0:02:58.7]} 4... Nc6 {[%clk 0:03:00.5]} 5. Nc3 {[%clk 0:02:56.7]}
5... Qc7 {[%clk 0:03:00.6]} 6. Be3 {[%clk 0:02:48.9]} 6... a6 {[%clk 0:02:59.8]}
7. Be2 {[%clk 0:02:46.2]} 7... Nf6 {[%clk 0:02:58.2]} 8. O-O {[%clk 0:02:45.4]}
8... Bb4 {[%clk 0:02:57.6]} 9. f3 {[%clk 0:02:37.3]} 9... O-O {[%clk 0:02:49]}
10. Kh1 {[%clk 0:02:23.8]} 10... b5 {[%clk 0:02:43.2]} 11. Nxc6 {[%clk 0:02:08]}
11... dxc6 {[%clk 0:02:42.6]} 12. Qd4 {[%clk 0:02:02.9]} 12... c5 {[%clk
0:02:40.7]} 13. Qd2 {[%clk 0:01:55.3]} 13... Rd8 {[%clk 0:02:32.7]} 14. Qe1
{[%clk 0:01:50.2]} 14... e5 {[%clk 0:02:31.3]} 15. a3 {[%clk 0:01:45.9]} 15...
Ba5 {[%clk 0:02:26.7]} 16. Qg3 {[%clk 0:01:41.4]} 16... Bxc3 {[%clk 0:02:11]}
17. bxc3 {[%clk 0:01:40.1]} 17... Nh5 {[%clk 0:02:10.2]} 18. Qg5 {[%clk
0:01:34.7]} 18... Nf4 {[%clk 0:02:09.6]} 19. Bxf4 {[%clk 0:01:22.8]} 19... exf4
{[%clk 0:02:08.7]} 20. Rad1 {[%clk 0:01:22.7]} 20... Be6 {[%clk 0:02:07.6]} 21.
e5 {[%clk 0:01:16.9]} 21... Qa5 {[%clk 0:01:45.8]} 22. Qxf4 {[%clk 0:01:09.5]}
22... Qxc3 {[%clk 0:01:41.4]} 23. Qg5 {[%clk 0:01:08.2]} 23... Rxd1 {[%clk
0:01:39.1]} 24. Rxd1 {[%clk 0:01:06.7]} 24... Re8 {[%clk 0:01:33.2]} 25. Qe7
{[%clk 0:00:54.6]} 25... Rf8 {[%clk 0:00:46.3]} 26. h3 {[%clk 0:00:41.6]} 26...
h6 {[%clk 0:00:26.7]} 27. Rd8 {[%clk 0:00:32.3]} 27... Rxd8 {[%clk 0:00:22.5]}
28. Qxd8+ {[%clk 0:00:32.4]} 28... Kh7 {[%clk 0:00:23.2]} 29. Bd3+ {[%clk
0:00:28.8]} 29... g6 {[%clk 0:00:23.4]} 30. Qf6 {[%clk 0:00:25.7]} 30... c4
{[%clk 0:00:19.3]} 31. Bxg6+ {[%clk 0:00:24.2]} 31... fxg6 {[%clk 0:00:19.4]}
32. Qxe6 {[%clk 0:00:24.5]} 32... Qxa3 {[%clk 0:00:17.9]} 33. Qf7+ {[%clk
0:00:22.6]} 33... Kh8 {[%clk 0:00:18.3]} 34. Qf6+ {[%clk 0:00:22.5]} 34... Kh7
{[%clk 0:00:18.2]} 35. Qf7+ {[%clk 0:00:22.4]} 35... Kh8 {[%clk 0:00:18.7]} 36.
e6 {[%clk 0:00:16.3]} 36... Qa1+ {[%clk 0:00:18.8]} 37. Kh2 {[%clk 0:00:15.1]}
37... Qe5+ {[%clk 0:00:19.5]} 38. Kh1 {[%clk 0:00:15]} 38... Qe1+ {[%clk
0:00:19.4]} 39. Kh2 {[%clk 0:00:15.1]} 39... Qe5+ {[%clk 0:00:19.7]} 40. Kh1
{[%clk 0:00:15.1]} 40... Qa1+ {[%clk 0:00:19.8]} 41. Kh2 {[%clk 0:00:15.1]}
41... Qe5+ {[%clk 0:00:20.4]} 1/2-1/2

[Event "*** Titled Tuesday Blitz"]
[Site "Chess.com"]
[Date "2020.11.10"]
[Round "1"]
[White "Chernov_Mikhail"]
[Black "Joshukid"]
[Result "1-0"]
[WhiteElo "2333"]
[BlackElo "2621"]
[TimeControl "180+1"]
[EndTime "10:07:16 PST"]
[Termination "Chernov_Mikhail won by checkmate"]

1. e4 {[%clk 0:03:00.2]} 1... c6 {[%clk 0:02:48.5]} 2. d4 {[%clk 0:02:59.9]}
2... d5 {[%clk 0:02:48.1]} 3. e5 {[%clk 0:03:00.5]} 3... Bf5 {[%clk 0:02:47.7]}
4. h4 {[%clk 0:03:00.3]} 4... h5 {[%clk 0:02:47.3]} 5. c4 {[%clk 0:03:00.2]}
5... e6 {[%clk 0:02:47.2]} 6. Nc3 {[%clk 0:03:00.5]} 6... dxc4 {[%clk
0:02:47.4]} 7. Bxc4 {[%clk 0:02:59.9]} 7... Nd7 {[%clk 0:02:47.3]} 8. Bg5 {[%clk
0:03:00.1]} 8... Be7 {[%clk 0:02:43]} 9. Qd2 {[%clk 0:02:59.6]} 9... Bxg5 {[%clk
0:02:42.5]} 10. hxg5 {[%clk 0:03:00.5]} 10... Ne7 {[%clk 0:02:42.6]} 11. Nge2
{[%clk 0:03:00.5]} 11... Nb6 {[%clk 0:02:40.3]} 12. Bb3 {[%clk 0:02:59.9]} 12...
Nbd5 {[%clk 0:02:37.2]} 13. Ng3 {[%clk 0:02:58.6]} 13... Bg6 {[%clk 0:02:36.5]}
14. Nce4 {[%clk 0:02:55.6]} 14... Nc8 {[%clk 0:02:24]} 15. Bc2 {[%clk 0:02:28]}
15... Qb6 {[%clk 0:02:22.3]} 16. O-O-O {[%clk 0:02:13.3]} 16... Ke7 {[%clk
0:02:09.5]} 17. Nc5 {[%clk 0:02:03.8]} 17... Bxc2 {[%clk 0:01:57.9]} 18. Qxc2
{[%clk 0:02:04.7]} 18... h4 {[%clk 0:01:41]} 19. Qe4 {[%clk 0:01:47.6]} 19...
Qa5 {[%clk 0:01:23.6]} 20. Rxh4 {[%clk 0:01:35.3]} 20... Rxh4 {[%clk 0:01:05.2]}
21. Qxh4 {[%clk 0:01:36.2]} 21... Qxa2 {[%clk 0:01:04.6]} 22. g6+ {[%clk
0:01:36.2]} 22... f6 {[%clk 0:01:05]} 23. exf6+ {[%clk 0:01:06.1]} 23... Kd6
{[%clk 0:00:56.6]} 24. Nge4+ {[%clk 0:00:47.1]} 24... Kc7 {[%clk 0:00:55.1]} 25.
Qg3+ {[%clk 0:00:19.4]} 25... Kb6 {[%clk 0:00:48.3]} 26. fxg7 {[%clk 0:00:14.5]}
26... Qa1+ {[%clk 0:00:41]} 27. Kd2 {[%clk 0:00:14.7]} 27... Qxb2+ {[%clk
0:00:41.2]} 28. Ke1 {[%clk 0:00:15.3]} 28... Nce7 {[%clk 0:00:37.9]} 29. Qd3
{[%clk 0:00:10.5]} 29... Nb4 {[%clk 0:00:37.8]} 30. Qd2 {[%clk 0:00:09.1]} 30...
Qa3 {[%clk 0:00:24]} 31. Rb1 {[%clk 0:00:08]} 31... a5 {[%clk 0:00:20.5]} 32.
Nd6 {[%clk 0:00:08.6]} 32... Ka7 {[%clk 0:00:15.6]} 33. Nc4 {[%clk 0:00:06.4]}
33... Qa2 {[%clk 0:00:02.3]} 34. Qxa2 {[%clk 0:00:06.4]} 34... Nxa2 {[%clk
0:00:03.2]} 35. Rxb7# {[%clk 0:00:07.2]} 1-0